bitfinex-derivatives/quotes_SOLF0:USTF0_20250907
["timestamp","ask_amount","ask_price","bid_price","bid_amount"]
[1757286397567,132.04541157,207.83,207.82,24.79]
[1757286397783,132.04541157,207.83,207.81,0.03226577]
[1757286398161,7.25,207.81,207.71,7.35]
[1757286398362,2.29541157,207.8,207.71,7.35]
[1757286398763,7.25,207.81,207.71,7.35]
[1757286399474,0.03249108,207.78,207.71,7.35]
[1757286399673,122.53249108,207.78,207.71,7.35]
[1757286399874,0.03249108,207.78,207.71,2.29541157]
[1757286400072,0.03249108,207.78,207.72,7.35]
[1757286400474,0.03249108,207.78,207.7,10.96]
[1757286400475,0.03249108,207.78,207.74,2.29541157]
[1757286400876,0.03249108,207.78,207.75,7.35]
[1757286401272,0.03249108,207.78,207.74,2.29541157]
[1757286401473,0.03249108,207.78,207.75,7.35]
[1757286402077,7.28249108,207.78,207.73,18.99]
[1757286404076,7.28249108,207.78,207.74,7.35]
[1757286404378,7.25,207.77,207.73,11.64]
[1757286404679,7.25,207.77,207.73,18.99]
[1757286405478,0.03249108,207.78,207.73,18.99]
[1757286406175,0.03249108,207.78,207.73,11.64]
[1757286406377,0.03249108,207.78,207.74,7.35]
[1757286406580,0.03249108,207.78,207.73,11.64]
[1757286407076,0.03249108,207.78,207.74,7.35]
[1757286407382,0.03249108,207.78,207.73,11.64]
[1757286407575,0.03249108,207.78,207.74,7.35]
[1757286407772,0.03249108,207.78,207.73,11.64]
[1757286408177,0.03249108,207.78,207.74,7.35]
[1757286408378,0.03249108,207.78,207.73,11.64]
[1757286408582,0.03249108,207.78,207.74,7.35]
[1757286408785,0.03249108,207.78,207.73,11.64]
[1757286409277,0.03249108,207.78,207.74,7.35]
[1757286409776,0.03249108,207.78,207.73,11.64]
[1757286410577,7.25,207.77,207.73,11.64]
[1757286410781,7.25,207.77,207.73,18.99]
[1757286415189,7.25,207.77,207.73,11.64]
[1757286415682,0.03249108,207.78,207.74,7.35]
[1757286415883,7.28249108,207.78,207.74,7.35]
[1757286418685,7.25,207.77,207.73,11.64]
[1757286418988,7.25,207.77,207.73,18.99]
[1757286420383,0.03249108,207.78,207.73,11.64]
[1757286420689,7.25,207.77,207.73,11.64]
[1757286420890,0.03249108,207.78,207.73,11.64]
[1757286421085,7.25,207.77,207.73,11.64]
[1757286421286,0.03249108,207.78,207.73,11.64]
[1757286421587,7.25,207.77,207.73,11.64]
[1757286421986,0.03249108,207.78,207.73,11.64]
[1757286423588,2.29541157,207.76,207.73,11.64]
[1757286423887,7.25,207.75,207.73,11.64]
[1757286424290,124.75541157,207.76,207.73,11.64]
[1757286425191,7.67,207.75,207.73,11.64]
[1757286425591,124.75541157,207.76,207.73,11.64]
[1757286425786,7.67,207.75,207.73,11.64]
[1757286426490,7.67,207.75,207.72,9.67]
[1757286426491,7.67,207.73,207.72,9.67]
[1757286426683,7.67,207.73,207.65,7.26]
[1757286426885,1.47036532,207.69,207.65,7.26]
[1757286427089,1.47036532,207.69,207.62,1.47036532]
[1757286427296,1.47036532,207.69,207.63,7.26]
[1757286427490,1.50197695,207.69,207.63,7.26]
[1757286429794,1.50197695,207.69,207.65,7.26]
[1757286429993,1.50197695,207.69,207.66,7.26]
[1757286431997,7.67,207.68,207.64,19.27]
[1757286432697,7.67,207.68,207.64,12.01]
[1757286432888,1.50197695,207.69,207.65,7.26]
[1757286433092,0.03161163,207.69,207.64,12.01]
[1757286433391,0.03161163,207.69,207.65,7.26]
[1757286434397,9.14036532,207.68,207.65,7.26]
[1757286434899,1.47036532,207.68,207.65,7.26]
[1757286435300,9.14036532,207.68,207.65,7.26]
[1757286436895,1.47036532,207.68,207.65,7.26]
[1757286437096,0.03161163,207.69,207.65,7.26]
[1757286437298,1.47036532,207.68,207.65,7.26]
[1757286437497,0.03161163,207.69,207.64,12.01]
[1757286437498,1.47036532,207.66,207.64,12.01]
[1757286437691,9.14036532,207.66,207.64,12.01]
[1757286437897,7.67,207.65,207.64,12.01]
[1757286440301,1.47036532,207.66,207.61,9.64]
[1757286440302,1.47036532,207.62,207.61,9.64]
[1757286440500,1.47036532,207.62,207.6,7.26]
[1757286441098,1.47036532,207.62,207.48,66.75482788]
[1757286441293,1.47036532,207.56,207.5,7.26]
[1757286441895,0.03204847,207.55,207.5,7.26]
[1757286442502,0.03204847,207.55,207.49,1.47036532]
[1757286442700,0.03204847,207.55,207.5,7.26]
[1757286443702,0.03204847,207.55,207.5,16.16]
[1757286443898,0.03204847,207.55,207.51,7.26]
[1757286444402,0.03204847,207.55,207.5,8.9]
[1757286445005,0.03204847,207.55,207.51,7.26]
[1757286445207,0.03204847,207.55,207.5,8.9]
[1757286446008,0.03204847,207.55,207.51,7.26]
[1757286446202,0.03204847,207.55,207.51,1.47036532]
[1757286446409,0.03204847,207.55,207.52,7.26]
[1757286446709,0.03204847,207.55,207.54,7.26]
[1757286448817,0.03204847,207.55,207.54,8.73036532]
[1757286449214,0.03204847,207.55,207.54,7.26]
[1757286449414,0.03204847,207.55,207.54,8.73036532]
[1757286454220,0.03204847,207.55,207.54,7.26]
[1757286455219,0.03204847,207.55,207.54,8.73036532]
[1757286455427,0.03204847,207.55,207.54,7.26]
[1757286456423,0.03204847,207.55,207.51,7.56]
[1757286456625,0.03204847,207.55,207.5,8.9]
[1757286457227,0.03204847,207.55,207.51,7.56]
[1757286457429,0.03204847,207.55,207.5,8.9]
[1757286458230,0.03204847,207.55,207.51,7.56]
[1757286458421,0.03204847,207.55,207.5,8.9]
[1757286458823,7.33204847,207.55,207.51,7.56]
[1757286459019,8.80241379,207.55,207.51,7.56]
[1757286459222,7.3,207.54,207.51,7.56]
[1757286459422,7.3,207.54,207.5,8.9]
[1757286459727,7.3,207.54,207.48,12.15]
[1757286459929,8.77036532,207.54,207.48,12.15]
[1757286460427,0.03204847,207.55,207.53,7.56]
[1757286460627,0.03204847,207.55,207.52,1.47036532]
[1757286460825,0.03204847,207.55,207.53,7.56]
[1757286463026,0.03204847,207.55,207.5,12.45]
[1757286463230,0.03204847,207.55,207.51,7.56]
[1757286463825,0.03204847,207.55,207.5,13.92036532]
[1757286465026,0.03204847,207.55,207.51,7.56]
[1757286465328,0.03204847,207.55,207.5,13.92036532]
[1757286466125,0.03204847,207.55,207.51,7.56]
[1757286466429,0.03204847,207.55,207.5,13.92036532]
[1757286466625,0.03204847,207.55,207.51,7.56]
[1757286467026,0.03204847,207.55,207.5,13.92036532]
[1757286467228,0.03204847,207.55,207.51,7.56]
[1757286467430,0.03204847,207.55,207.5,13.92036532]
[1757286468030,0.03204847,207.55,207.51,7.56]
[1757286468220,0.03204847,207.55,207.5,13.92036532]
[1757286468420,0.03204847,207.55,207.51,7.56]
[1757286468622,0.03204847,207.55,207.5,26.34036532]
[1757286469032,0.03204847,207.55,207.51,7.56]
[1757286469528,0.03204847,207.55,207.52,1.47036532]
[1757286469725,0.03204847,207.55,207.53,7.56]
[1757286471531,0.03204847,207.55,207.5,26.34036532]
[1757286471927,0.03204847,207.55,207.51,7.56]
[1757286472129,0.03204847,207.55,207.5,26.34036532]
[1757286472427,0.03204847,207.55,207.51,1.47036532]
[1757286472627,0.03204847,207.55,207.52,7.56]
[1757286473126,0.03204847,207.55,207.51,1.47036532]
[1757286473329,0.03204847,207.55,207.51,7.56]
[1757286473530,0.03204847,207.55,207.5,26.34036532]
[1757286474327,0.03204847,207.55,207.51,7.56]
[1757286474526,0.03204847,207.55,207.5,26.34036532]
[1757286474722,0.03204847,207.55,207.51,7.56]
[1757286475128,0.03204847,207.55,207.5,26.34036532]
[1757286475834,0.03204847,207.55,207.51,7.56]
[1757286476227,0.03204847,207.55,207.5,26.34036532]
[1757286477328,0.03204847,207.55,207.51,7.56]
[1757286477733,0.03204847,207.55,207.5,26.34036532]
[1757286477933,0.03204847,207.55,207.51,7.56]
[1757286478333,0.03204847,207.55,207.5,26.34036532]
[1757286478838,0.03204847,207.55,207.51,7.56]
[1757286479230,0.03204847,207.55,207.5,26.34036532]
[1757286479435,0.03204847,207.55,207.51,7.56]
[1757286479633,0.03204847,207.55,207.5,26.34036532]
[1757286480439,0.03204847,207.55,207.51,7.56]
[1757286480639,0.03204847,207.55,207.5,26.34036532]
[1757286481335,0.03204847,207.55,207.51,7.56]
[1757286481635,0.03204847,207.55,207.5,24.87]
[1757286481841,0.03204847,207.55,207.51,7.56]
[1757286482041,0.03204847,207.55,207.5,26.34036532]
[1757286482738,8.77036532,207.52,207.5,24.87]
[1757286483645,7.3,207.51,207.5,24.87]
[1757286483943,1.47036532,207.54,207.51,7.56]
[1757286484447,8.77036532,207.54,207.51,7.56]
[1757286484642,0.03204847,207.55,207.51,1.47036532]
[1757286484842,0.03204847,207.55,207.52,7.56]
[1757286485042,0.03204847,207.55,207.52,7.4]
[1757286485537,0.03204847,207.55,207.54,7.4]
[1757286485736,0.03204847,207.55,207.5,26.34036532]
[1757286486442,0.03204847,207.55,207.51,7.4]
[1757286486642,0.03204847,207.55,207.5,26.34036532]
[1757286487640,0.03204847,207.55,207.5,24.87]
[1757286488048,0.03204847,207.55,207.54,7.4]
[1757286491645,0.03204847,207.55,207.51,7.4]
[1757286492440,0.03204847,207.55,207.5,24.87]
[1757286493442,0.03204847,207.55,207.51,7.4]
[1757286493748,0.03204847,207.55,207.5,24.87]
[1757286493949,0.03204847,207.55,207.51,7.4]
[1757286494150,0.03204847,207.55,207.5,24.87]
[1757286494545,7.60204847,207.55,207.51,7.4]
[1757286495345,7.60204847,207.55,207.5,24.87]
[1757286495541,7.60204847,207.55,207.51,7.4]
[1757286496047,0.03204847,207.55,207.5,24.87]
[1757286496645,0.03204847,207.55,207.51,7.4]
[1757286496843,0.03204847,207.55,207.5,24.87]
[1757286497047,0.03204847,207.55,207.51,7.4]
[1757286497250,0.03204847,207.55,207.5,24.87]
[1757286497746,0.03204847,207.55,207.51,7.4]
[1757286498152,0.03204847,207.55,207.5,24.87]
[1757286498350,0.03204847,207.55,207.51,7.4]
[1757286498950,7.57,207.54,207.51,7.4]
[1757286499145,0.03204847,207.55,207.51,7.4]
[1757286499755,0.03204847,207.55,207.5,24.87]
[1757286499960,0.03204847,207.55,207.51,7.4]
[1757286500345,0.03204847,207.55,207.5,24.87]
[1757286501048,0.03204847,207.55,207.51,7.4]
[1757286501655,0.03204847,207.55,207.5,24.87]
[1757286501853,0.03204847,207.55,207.51,7.4]
[1757286502651,0.03204847,207.55,207.5,24.87]
[1757286503156,0.03204847,207.55,207.51,7.4]
[1757286503355,0.03204847,207.55,207.5,24.87]
[1757286503550,0.03204847,207.55,207.51,7.4]
[1757286504453,0.03204847,207.55,207.5,24.87]
[1757286504659,0.03204847,207.55,207.51,7.4]
[1757286504855,0.03204847,207.55,207.5,24.87]
[1757286505255,0.03204847,207.55,207.51,7.4]
[1757286505653,0.03204847,207.55,207.5,12.45]
[1757286505955,0.03204847,207.55,207.51,7.4]
[1757286506258,0.03204847,207.55,207.5,12.45]
[1757286506758,0.03204847,207.55,207.51,7.4]
[1757286506958,0.03204847,207.55,207.5,12.45]
[1757286507156,0.03204847,207.55,207.51,7.4]
[1757286507559,0.03204847,207.55,207.52,8.66]
[1757286507955,0.03204847,207.55,207.53,7.4]
[1757286508155,0.03204847,207.55,207.52,8.66]
[1757286508360,0.03204847,207.55,207.53,7.4]
[1757286509155,0.03204847,207.55,207.52,8.66]
[1757286509757,0.03204847,207.55,207.53,7.4]
[1757286510261,0.03204847,207.55,207.52,8.66]
[1757286510658,0.03204847,207.55,207.53,7.4]
[1757286513166,0.03204847,207.55,207.52,8.66]
[1757286513367,0.03204847,207.55,207.53,7.4]
[1757286513571,0.03204847,207.55,207.52,8.66]
[1757286513762,0.03204847,207.55,207.53,7.4]
[1757286514165,0.03204847,207.55,207.52,8.66]
[1757286514364,0.03204847,207.55,207.53,7.4]
[1757286514864,0.03204847,207.55,207.52,8.66]
[1757286515066,0.03204847,207.55,207.53,7.3]
[1757286515266,0.03204847,207.55,207.54,7.3]
[1757286517362,0.03204847,207.55,207.53,12.39]
[1757286517363,7.58,207.54,207.53,12.39]
[1757286523770,0.03204847,207.55,207.53,19.69]
[1757286526974,0.03204847,207.55,207.54,7.3]
[1757286529177,7.61204847,207.55,207.53,12.39]
[1757286529873,0.03204847,207.55,207.54,7.3]
[1757286530175,7.58,207.66,207.55,7.3]
[1757286530375,7.58,207.66,207.58,7.3]
[1757286530879,2.29974725,207.7,207.58,7.3]
[1757286531173,9.87974725,207.7,207.58,7.3]
[1757286531377,9.87974725,207.7,207.62,0.03152368]
[1757286532578,7.58,207.74,207.64,7.3]
[1757286533378,7.58,207.74,207.67,0.03640575]
[1757286537790,7.58,207.74,207.68,7.3]
[1757286539195,2.29974725,207.78,207.68,7.3]
[1757286539394,7.58,207.77,207.68,7.3]
[1757286545297,7.58,207.77,207.69,2.29974725]
[1757286545596,124.0,207.86,207.7,7.95]
[1757286545597,7.88,207.8,207.7,7.95]
[1757286546502,7.88,207.8,207.73,0.03088823]
[1757286547596,7.88,207.8,207.74,7.95]
[1757286548196,53.7,207.81,207.74,7.95]
[1757286548994,61.58,207.81,207.74,7.95]
[1757286550403,61.58,207.81,207.75,1.46870215]
[1757286550707,1.46870215,207.82,207.77,1.46870215]
[1757286550907,9.34870215,207.82,207.78,7.95]
[1757286551407,9.34870215,207.82,207.78,7.98135526]
[1757286552207,1.46870215,207.85,207.79,7.95]
[1757286553701,9.34870215,207.86,207.79,9.41870215]
[1757286554300,9.34870215,207.86,207.79,7.95]
[1757286556905,1.46870215,207.84,207.78,9.45005741]
[1757286557499,1.46870215,207.81,207.78,0.03135526]
[1757286557698,7.88,207.8,207.78,0.03135526]
[1757286559412,121.64,208.06,207.8,7.95]
[1757286559606,1.46870215,207.95,207.87,7.95]
[1757286560209,1.46870215,207.95,207.89,0.03284129]
[1757286565711,7.88,207.9,207.89,0.03284129]
[1757286567511,1.46870215,207.91,207.89,0.03284129]
[1757286568213,9.34870215,207.93,207.89,11.11284129]
[1757286568613,9.34870215,207.93,207.89,19.06284129]
[1757286568909,1.46870215,207.95,207.89,12.58154344]
[1757286569314,1.46870215,207.95,207.89,12.54870215]
[1757286569911,9.34870215,207.95,207.9,7.9848821]
[1757286570713,7.88,207.98,207.91,7.95]
[1757286570912,1.46870215,207.96,207.9,7.9848821]
[1757286571510,7.88,207.98,207.9,7.9848821]
[1757286571511,9.34870215,207.98,207.91,1.46870215]
[1757286572819,9.34870215,207.98,207.92,7.95]
[1757286573021,1.46870215,207.99,207.95,7.95]
[1757286573215,7.88,207.99,207.95,7.95]
[1757286573415,1.46870215,207.98,207.95,7.95]
[1757286573616,9.34870215,207.98,207.95,7.95]
[1757286573917,9.34870215,207.98,207.95,7.98234113]
[1757286574114,9.34870215,207.98,207.95,0.03234113]
[1757286574317,9.34870215,207.98,207.96,12.1]
[1757286578121,1.46870215,207.98,207.96,19.43]
[1757286578523,90.24870215,208.0,207.96,19.43]
[1757286578817,90.24870215,208.0,207.96,12.1]
[1757286578818,7.56,207.99,207.96,12.1]
[1757286579022,1.46870215,207.98,207.96,12.1]
[1757286579225,7.56,207.97,207.96,12.1]
[1757286580023,1.46870215,207.98,207.96,12.1]
[1757286580918,81.22,208.0,207.96,12.1]
[1757286581222,1.46870215,208.0,207.97,7.33]
[1757286581825,9.02870215,208.0,207.97,7.33]
[1757286583625,9.02870215,208.0,207.96,12.1]
[1757286583822,7.56,207.99,207.96,12.1]
[1757286584021,7.56,207.99,207.96,19.43]
[1757286586127,9.02870215,207.99,207.96,19.43]
[1757286587432,1.46870215,207.99,207.96,19.43]
[1757286588329,1.46870215,207.99,207.97,7.33]
[1757286588525,1.46870215,207.99,207.98,7.33]
[1757286589132,1.46870215,207.99,207.96,19.43]
[1757286589538,1.46870215,207.99,207.97,7.33]
[1757286589839,1.46870215,207.99,207.96,12.1]
[1757286590139,121.94,208.07,207.89,11.08]
[1757286590140,1.46870215,207.97,207.89,11.08]
[1757286590355,9.02870215,207.9,207.89,11.08]
[1757286590539,9.02870215,207.9,207.84,7.33]
[1757286590736,1.46870215,207.88,207.82,1.46870215]
[1757286590935,1.46870215,207.88,207.83,7.33]
[1757286591338,1.50206044,207.88,207.83,7.33]
[1757286591543,1.50206044,207.88,207.8,63.18503824]
[1757286591544,1.46870215,207.84,207.8,70.51503824]
[1757286591728,1.46870215,207.84,207.81,7.33]
[1757286592133,1.46870215,207.87,207.81,7.33]
[1757286593940,1.50206044,207.88,207.81,7.33]
[1757286594341,1.50206044,207.88,207.81,8.79870215]
[1757286594741,0.03335829,207.88,207.81,8.79870215]
[1757286595037,1.46870215,207.87,207.81,8.79870215]
[1757286595537,1.46870215,207.85,207.81,7.33]
[1757286595738,1.46870215,207.83,207.79,13.46]
[1757286596043,1.46870215,207.81,207.79,13.46]
[1757286596441,1.46870215,207.81,207.77,7.33]
[1757286597236,1.46870215,207.79,207.67,7.33]
[1757286597537,1.46870215,207.77,207.71,8.79870215]
[1757286597743,1.46870215,207.75,207.71,7.33]
[1757286598040,1.50201958,207.75,207.69,7.33]
[1757286598842,9.02870215,207.73,207.69,7.33]
[1757286600641,9.02870215,207.73,207.67,9.03]
[1757286600938,7.56,207.7,207.67,9.03]
[1757286601550,1.46870215,207.71,207.67,9.03]
[1757286601551,1.46870215,207.69,207.67,9.03]
[1757286601945,1.46870215,207.7,207.67,9.03]
[1757286602145,9.06197194,207.71,207.67,9.03]
[1757286602344,1.50197194,207.71,207.67,9.03]
[1757286602550,0.03326979,207.71,207.68,7.33]
[1757286603241,0.03326979,207.71,207.68,1.46870215]
[1757286603545,9.06197194,207.71,207.67,16.36]
[1757286605546,1.50197194,207.71,207.67,16.36]
[1757286605744,0.03326979,207.71,207.68,7.84]
[1757286607049,0.03326979,207.71,207.67,10.49870215]
[1757286607346,0.03326979,207.71,207.68,7.84]
[1757286608249,0.03326979,207.71,207.67,10.49870215]
[1757286608641,0.03326979,207.71,207.68,7.84]
[1757286609742,0.03326979,207.71,207.67,10.49870215]
[1757286609944,0.03326979,207.71,207.68,7.84]
[1757286610247,0.03326979,207.71,207.67,10.49870215]
[1757286611043,7.57,207.95,207.7,9.30870215]
[1757286611240,1.46870215,207.87,207.79,9.30870215]
[1757286611438,1.46870215,207.85,207.79,9.30870215]
[1757286612348,7.57,207.84,207.8,0.03068124]
[1757286612644,7.57,207.84,207.79,7.84]
[1757286613345,7.57,207.84,207.79,7.87081365]
[1757286614442,7.57,207.88,207.8,7.84]
[1757286614944,2.29431112,207.91,207.8,7.84]
[1757286615151,7.57,207.92,207.83,7.84]
[1757286615352,7.57,207.9,207.83,7.84]
[1757286615550,2.29431112,207.88,207.82,0.03397151]
[1757286615751,7.57,207.87,207.82,0.03397151]
[1757286616346,7.57,207.84,207.82,0.03397151]
[1757286616646,2.29431112,207.85,207.82,0.03397151]
[1757286616850,7.57,207.84,207.82,0.03397151]
[1757286617744,2.29431112,207.86,207.82,0.03397151]
[1757286617946,7.57,207.85,207.82,0.03397151]
[1757286618148,2.29431112,207.86,207.82,0.03397151]
[1757286618651,7.57,207.85,207.82,0.03397151]
[1757286618851,9.86431112,207.83,207.82,0.03397151]
[1757286619677,10.34431112,207.83,207.82,0.03397151]
[1757286620155,10.34431112,207.83,207.73,7.84]
[1757286620354,2.29431112,207.8,207.73,7.84]
[1757286620555,9.86431112,207.8,207.68,7.84]
[1757286620755,2.29431112,207.77,207.68,7.84]
[1757286621358,0.03249577,207.75,207.68,7.84]
[1757286622980,2.29431112,207.74,207.67,9.03]
[1757286626355,7.57,207.7,207.67,9.03]
[1757286626556,2.29431112,207.71,207.67,9.03]
[1757286626754,7.57,207.7,207.67,9.03]
[1757286626954,2.29431112,207.71,207.67,9.03]
[1757286627149,2.32783482,207.71,207.67,9.03]
[1757286627552,7.57,207.7,207.67,9.03]
[1757286627958,2.32783482,207.71,207.67,9.03]
[1757286628261,7.57,207.7,207.67,9.03]
[1757286628460,7.57,207.7,207.65,7.84]
[1757286630356,7.57,207.7,207.65,21.51]
[1757286630859,7.57,207.7,207.66,7.84]
[1757286631927,9.89783482,207.71,207.65,13.67]
[1757286634866,2.29431112,207.68,207.65,13.67]
[1757286635069,9.56431112,207.68,207.65,13.67]
[1757286636567,9.56431112,207.68,207.65,21.12]
[1757286637060,2.29431112,207.68,207.65,21.12]
[1757286637663,2.29431112,207.68,207.65,13.67]
[1757286637865,7.27,207.67,207.65,13.67]
[1757286639270,2.29431112,207.68,207.65,13.67]
[1757286639863,2.29431112,207.68,207.65,21.12]
[1757286642566,2.29431112,207.68,207.66,7.45]
[1757286642771,2.29431112,207.68,207.67,7.45]
[1757286645476,2.29431112,207.68,207.65,21.12]
[1757286646070,7.27,207.67,207.65,13.67]
[1757286646278,2.29431112,207.68,207.65,13.67]
[1757286646679,7.27,207.67,207.65,13.67]
[1757286648573,7.27,207.67,207.6,7.45]
[1757286648574,7.75,207.67,207.6,7.45]
[1757286648769,2.29431112,207.62,207.52,7.45]
[1757286649169,2.32840599,207.59,207.52,7.45]
[1757286654578,0.03409487,207.59,207.52,7.45]
[1757286655075,0.03409487,207.59,207.53,7.45]
[1757286655781,7.27,207.7,207.55,2.29431112]
[1757286656089,2.29431112,207.67,207.56,7.45]
[1757286657177,2.29431112,207.67,207.54,2.29431112]
[1757286657178,2.29431112,207.67,207.6,7.45]
[1757286657977,7.27,207.7,207.6,7.45]
[1757286658181,9.56431112,207.7,207.6,7.45]
[1757286658577,2.29431112,207.64,207.6,7.45]
[1757286658881,9.56431112,207.64,207.6,7.45]
[1757286659581,9.56431112,207.64,207.59,0.0347652]
[1757286659582,2.29431112,207.62,207.59,0.0347652]
[1757286660080,2.29431112,207.62,207.59,7.4847652]
[1757286660682,7.27,207.61,207.59,0.0347652]
[1757286661183,2.29431112,207.63,207.59,7.4847652]
[1757286661482,2.29431112,207.63,207.6,7.45]
[1757286662179,2.29431112,207.63,207.59,0.0347652]
[1757286662384,2.29431112,207.63,207.6,7.45]
[1757286666078,2.29431112,207.66,207.6,8.02]
[1757286667187,86.32,207.71,207.59,0.0347652]
[1757286667188,9.78431112,207.63,207.59,0.0347652]
[1757286667382,9.78431112,207.63,207.59,8.0547652]
[1757286672188,7.49,207.62,207.59,8.0547652]
[1757286673488,9.78431112,207.63,207.59,8.0547652]
[1757286674291,7.49,207.63,207.59,8.0547652]
[1757286674584,1.47162042,207.61,207.59,8.0547652]
[1757286675083,1.47162042,207.61,207.59,0.0347652]
[1757286675281,1.47162042,207.61,207.6,8.02]
[1757286675992,1.47162042,207.61,207.59,0.0347652]
[1757286676380,7.49,207.63,207.59,0.0347652]
[1757286676585,1.47162042,207.61,207.59,8.0547652]
[1757286676785,1.47162042,207.61,207.59,0.0347652]
[1757286676987,1.47162042,207.61,207.6,8.02]
[1757286677689,1.47162042,207.65,207.59,0.0347652]
[1757286677903,1.47162042,207.65,207.6,8.02]
[1757286678288,1.47162042,207.67,207.6,9.49162042]
[1757286679590,1.47162042,207.67,207.6,8.02]
[1757286679790,1.47162042,207.67,207.6,9.49162042]
[1757286680487,1.47162042,207.65,207.6,8.02]
[1757286680690,1.47162042,207.63,207.6,8.02]
[1757286681494,8.96162042,207.63,207.59,0.0347652]
[1757286681695,1.47162042,207.61,207.59,0.0347652]
[1757286681893,1.47162042,207.61,207.59,8.0547652]
[1757286682297,7.49,207.62,207.59,8.0547652]
[1757286682496,1.47162042,207.61,207.59,8.0547652]
[1757286682997,1.47162042,207.61,207.59,0.0347652]
[1757286686798,1.47162042,207.62,207.59,8.0547652]
[1757286688497,8.96162042,207.62,207.59,8.0547652]
[1757286688696,8.96162042,207.62,207.59,0.0347652]
[1757286688998,1.47162042,207.62,207.59,8.0547652]
[1757286689193,8.96162042,207.62,207.59,0.0347652]
[1757286689589,1.47162042,207.6,207.59,0.0347652]
[1757286690191,8.96162042,207.6,207.59,0.0347652]
[1757286690998,1.47162042,207.6,207.59,0.0347652]
[1757286692700,8.96162042,207.6,207.59,0.0347652]
[1757286692900,8.96162042,207.6,207.56,10.01]
[1757286692901,7.49,207.59,207.56,10.01]
[1757286693103,7.49,207.56,207.48,8.02]
[1757286693300,1.47162042,207.6,207.48,8.02]
[1757286693503,7.49,207.55,207.45,1.47162042]
[1757286693703,1.47162042,207.52,207.46,9.49162042]
[1757286694105,1.47162042,207.52,207.46,8.02]
[1757286694305,0.03248394,207.51,207.45,1.47162042]
[1757286694906,0.03248394,207.51,207.44,8.02]
[1757286695105,0.03248394,207.51,207.46,7.28]
[1757286695312,0.03248394,207.51,207.45,1.47162042]
[1757286695507,0.03248394,207.51,207.46,7.28]
[1757286695718,0.03248394,207.51,207.45,1.47162042]
[1757286696001,0.03248394,207.51,207.46,7.28]
[1757286696401,0.03248394,207.51,207.45,1.47162042]
[1757286696607,0.03248394,207.51,207.46,7.28]
[1757286696802,0.03248394,207.51,207.45,1.47162042]
[1757286697009,0.03248394,207.51,207.46,7.28]
[1757286697208,0.03248394,207.51,207.45,1.47162042]
[1757286697707,0.03248394,207.51,207.46,7.28]
[1757286698005,0.03248394,207.51,207.48,7.28]
[1757286698401,0.03248394,207.51,207.47,1.47162042]
[1757286698606,0.03248394,207.51,207.48,7.28]
[1757286698806,0.03248394,207.51,207.47,1.47162042]
[1757286699312,1.50410436,207.51,207.48,7.28]
[1757286700017,1.47162042,207.49,207.44,7.28]
[1757286700606,1.47162042,207.49,207.43,75.3774524]
[1757286700816,1.47162042,207.47,207.44,7.28]
[1757286701108,7.54,207.46,207.43,10.28]
[1757286701409,1.47162042,207.47,207.43,17.56]
[1757286701712,9.0429321,207.47,207.43,17.56]
[1757286703613,1.47162042,207.45,207.43,17.56]
[1757286705013,1.5029321,207.47,207.44,7.28]
[1757286705208,1.5029321,207.47,207.43,10.28]
[1757286705409,1.5029321,207.47,207.44,7.28]
[1757286707213,9.0429321,207.47,207.43,10.28]
[1757286707416,9.0429321,207.47,207.43,17.56]
[1757286708716,1.5029321,207.47,207.44,7.28]
[1757286711317,9.0429321,207.47,207.43,17.56]
[1757286711714,7.54,207.46,207.43,17.56]
[1757286713515,1.5029321,207.47,207.43,10.28]